[Event "DVM U20w 2019"]
[Site "Braunschweig"]
[Date "2019.12.27"]
[Round "1"]
[White "Kung, Fanny"]
[Black "Peglau, Charis"]
[Result "0-1"]
[ECO "B13"]
[WhiteElo "1426"]
[BlackElo "1728"]
[Annotator "NA RC"]
[PlyCount "92"]
[EventDate "2019.12.27"]
[EventType "team-tourn"]
[EventRounds "7"]
[EventCountry "GER"]
[SourceTitle "playchess.com"]
[Source "ChessBase"]
[SourceQuality "1"]
[WhiteTeam "Leegebrucher SF"]
[BlackTeam "Schachzentrum Seeblick"]
[TimeControl "40/5400+30:1800+30"]

1. e4 {[%emt 0:00:00]} c6 {[%emt 0:00:00]} 2. d4 {[%emt 0:00:00]} d5 {[%emt 0:00:00]} 3. exd5 {[%emt 0:00:00]} cxd5 {[%emt 0:00:00]} 4. Nf3 {[%emt 0:00:38]} Nf6 {[%emt 0:00:12]} 5. c3 {[%emt 0:01:44]} Bf5 {[%emt 0:01:33]} 6. Be2 {[%emt 0:03:13]} e6 {[%emt 0:01:27]} 7. Bf4 {[%emt 0:04:25]} Nc6 {[%emt 0:01:10]} 8. O-O {[%emt 0:06:22]} Qb6 {[%emt 0:04:04]} 9. Qb3 {[%emt 0:05:43]} Be7 {[%emt 0:04:46]} 10. Qxb6 {[%emt 0:04:26]} axb6 {[%emt 0:00:08]} 11. Nbd2 {[%emt 0:02:02]} O-O {[%emt 0:02:51]} 12. Rfe1 {[%emt 0:22:06]} Rfc8 {[%emt 0:03:15]} 13. Nb3 {[%emt 0:16:01]} Na5 {[%emt 0:04:24]} 14. Nbd2 {[%emt 0:10:13]} Nh5 {[%emt 0:01:13]} 15. Be3 {[%emt 0:04:12]} Nf6 {[%emt 0:01:00]} 16. Ne5 {[%emt 0:00:34]} Bd6 {[%emt 0:04:12]} 17. Bf3 {[%emt 0:02:28]} b5 {[%emt 0:06:20]} 18. Rec1 {[%emt 0:05:23]} Nc4 {[%emt 0:01:14]} 19. Ndxc4 {[%emt 0:00:40]} bxc4 {[%emt 0:00:11]} 20. Be2 {[%emt 0:00:41]} Ra5 {[%emt 0:02:18]} 21. f3 {[%emt 0:01:12]} h6 {[%emt 0:01:01]} 22. h4 {[%emt 0:00:49]} Rca8 {[%emt 0:03:54]} 23. a3 {[%emt 0:00:18]} h5 {[%emt 0:03:36]} 24. Kf2 {[%emt 0:01:11]} Kf8 {[%emt 0:03:35]} 25. Rg1 {[%emt 0:00:38]} Ke8 {[%emt 0:05:40]} 26. g4 {[%emt 0:01:24]} hxg4 {[%emt 0:00:25]} 27. fxg4 {[%emt 0:00:08]} Ne4+ {[%emt 0:01:04]} 28. Ke1 {[%emt 0:01:30]} Bh7 {[%emt 0:01:21]} 29. g5 {[%emt 0:00:49]} Bf5 {[%emt 0:02:22]} 30. Bf4 {[%emt 0:01:44]} Ke7 {[%emt 0:02:32]} 31. h5 {[%emt 0:02:03]} Rh8 {[%emt 0:05:56]} 32. Bf3 {[%emt 0:01:14]} Rb5 {[%emt 0:03:30]} 33. Rg2 {[%emt 0:01:12]} Rb3 {[%emt 0:10:09]} 34. Rc1 {[%emt 0:01:18]} Bh3 {[%emt 0:06:11]} 35. Rh2 {[%emt 0:00:37]} Bxe5 {[%emt 0:01:42]} 36. Bxe5 {[%emt 0:00:15]} Nxg5 {[%emt 0:00:17]} 37. Bh1 {[%emt 0:00:46]} f6 {[%emt 0:00:31]} 38. Bg3 {[%emt 0:00:15]} Rxh5 {[%emt 0:00:26]} 39. Rcc2 {[%emt 0:00:11]} Bg4 {[%emt 0:02:28]} 40. Rxh5 {[%emt 0:00:16]} Bxh5 {[%emt 0:00:06]} 41. Bg2 {[%emt 0:30:30]} Bg6 {[%emt 0:30:48]} 42. Re2 {[%emt 0:00:18]} Bd3 {[%emt 0:00:43]} 43. Re3 {[%emt 0:00:30]} Ne4 {[%emt 0:00:50]} 44. Bf4 {[%emt 0:00:36]} Rxb2 {[%emt 0:00:14]} 45. Bf3 {[%emt 0:00:22]} Rb1+ {[%emt 0:00:23]} 46. Bd1 {[%emt 0:00:10]} Nxc3 {[%emt 0:00:13] normal} 0-1

[Event "DVM U20w 2019"]
[Site "Braunschweig"]
[Date "2019.12.27"]
[Round "1"]
[White "Zoll, Cindy"]
[Black "Giede, Anna-Blume"]
[Result "0-1"]
[ECO "A02"]
[WhiteElo "1387"]
[BlackElo "1582"]
[Annotator "NA RC"]
[PlyCount "68"]
[EventDate "2019.12.27"]
[EventType "team-tourn"]
[EventRounds "7"]
[EventCountry "GER"]
[SourceTitle "playchess.com"]
[Source "ChessBase"]
[SourceQuality "1"]
[WhiteTeam "SG Güstrow/Teterow"]
[BlackTeam "TuRa Harksheide Norderstedt"]
[TimeControl "40/5400+30:1800+30"]

1. f4 {[%emt 0:00:00]} d6 {[%emt 0:00:00]} 2. e3 {[%emt 0:00:00]} Nf6 {[%emt 0:00:00]} 3. Nf3 {[%emt 0:00:03]} g6 {[%emt 0:00:00]} 4. d4 {[%emt 0:00:18]} Bg7 {[%emt 0:00:02]} 5. Bd3 {[%emt 0:02:05]} O-O {[%emt 0:00:15]} 6. O-O {[%emt 0:00:18]} c5 {[%emt 0:00:54]} 7. c3 {[%emt 0:00:21]} Nc6 {[%emt 0:04:46]} 8. Bc2 {[%emt 0:10:40]} e5 {[%emt 0:21:08]} 9. d5 {[%emt 0:16:56]} Na5 {[%emt 0:23:52]} 10. e4 {[%emt 0:16:02]} exf4 {[%emt 0:09:15]} 11. Bxf4 {[%emt 0:00:27]} Re8 {[%emt 0:19:52]} 12. Nbd2 {[%emt 0:01:26]} b6 13. Rb1 {[%emt 0:01:17]} Ba6 {[%emt 0:03:12]} 14. Re1 {[%emt 0:01:05]} Rc8 {[%emt 0:03:41]} 15. b3 {[%emt 0:05:47]} Qd7 {[%emt 0:02:01]} 16. Nf1 {[%emt 0:18:49]} Nb7 {[%emt 0:04:10]} 17. Ng5 {[%emt 0:06:24]} h6 {[%emt 0:02:01]} 18. Nh3 {[%emt 0:00:28]} Bxf1 {[%emt 0:01:10]} 19. Kxf1 {[%emt 0:00:35]} Re7 {[%emt 0:01:28]} 20. Bd2 {[%emt 0:03:21]} Rce8 {[%emt 0:00:28]} 21. Qf3 {[%emt 0:01:01]} g5 {[%emt 0:01:08]} 22. Nxg5 {[%emt 0:05:23]} hxg5 {[%emt 0:00:17]} 23. Bxg5 {[%emt 0:00:13]} Ng4 {[%emt 0:01:09]} 24. Qh3 {[%emt 0:04:04]} f6 {[%emt 0:00:21]} 25. e5 {[%emt 0:04:02]} Nxe5 {[%emt 0:00:42]} 26. Qh7+ {[%emt 0:00:55]} Kf8 {[%emt 0:00:04]} 27. Bh6 {[%emt 0:00:53]} Bxh6 {[%emt 0:00:59]} 28. Qxh6+ {[%emt 0:00:21]} Rg7 {[%emt 0:00:08]} 29. Qxf6+ {[%emt 0:00:22]} Rf7 {[%emt 0:00:16]} 30. Qxf7+ {[%emt 0:00:24]} Qxf7+ {[%emt 0:00:05]} 31. Kg1 {[%emt 0:00:06]} Qh5 {[%emt 0:00:25]} 32. Rf1+ {[%emt 0:00:19]} Ke7 {[%emt 0:00:15]} 33. Rf5 {[%emt 0:00:57]} Qe2 {[%emt 0:00:33]} 34. Rf2 {[%emt 0:00:26]} Qe3 {[%emt 0:00:36] normal} 0-1

[Event "DVM U20w 2019"]
[Site "Braunschweig"]
[Date "2019.12.27"]
[Round "2"]
[White "Ziegenfuß, Antonia"]
[Black "Brunner, Sophia"]
[Result "1-0"]
[ECO "D35"]
[WhiteElo "2052"]
[BlackElo "1852"]
[Annotator "NA"]
[PlyCount "118"]
[EventDate "2019.12.27"]
[EventType "team-tourn"]
[EventRounds "7"]
[EventCountry "GER"]
[SourceTitle "playchess.com"]
[Source "ChessBase"]
[SourceQuality "1"]
[WhiteTeam "OSG Baden-Baden"]
[BlackTeam "SK Nordhorn-Blanke"]
[TimeControl "40/5400+30:1800+30"]

1. d4 {[%emt 0:00:00]} Nf6 {[%emt 0:00:00]} 2. c4 {[%emt 0:00:00]} e6 {[%emt 0:00:00]} 3. Nc3 {[%emt 0:00:00]} d5 {[%emt 0:00:15]} 4. cxd5 {[%emt 0:00:00]} exd5 {[%emt 0:00:24]} 5. Bg5 {[%emt 0:00:10]} Be7 {[%emt 0:03:06]} 6. e3 {[%emt 0:00:57]} c6 {[%emt 0:00:35]} 7. Qc2 {[%emt 0:01:13]} h6 {[%emt 0:02:28]} 8. Bh4 {[%emt 0:00:53]} O-O {[%emt 0:05:08]} 9. f3 {[%emt 0:09:59]} Re8 {[%emt 0:04:00]} 10. Nge2 {[%emt 0:08:02]} Bb4 {[%emt 0:06:49]} 11. Bf2 {[%emt 0:01:22]} Nbd7 {[%emt 0:03:51]} 12. a3 {[%emt 0:11:50]} Ba5 {[%emt 0:10:31]} 13. g4 {[%emt 0:04:12]} Nh7 {[%emt 0:05:20]} 14. h4 {[%emt 0:05:41]} Ndf8 {[%emt 0:03:35]} 15. Qd3 {[%emt 0:12:57]} Qf6 {[%emt 0:01:19]} 16. Bg2 {[%emt 0:02:19]} Qg6 {[%emt 0:02:01]} 17. Qd2 {[%emt 0:04:24]} f5 {[%emt 0:02:44]} 18. O-O-O {[%emt 0:13:04]} fxg4 {[%emt 0:02:09]} 19. Rdg1 {[%emt 0:02:25]} Qf7 {[%emt 0:01:26]} 20. Nf4 {[%emt 0:02:51]} Bc7 {[%emt 0:03:54]} 21. fxg4 {[%emt 0:02:23]} Bxf4 {[%emt 0:03:37]} 22. exf4 {[%emt 0:00:07]} Bxg4 {[%emt 0:02:48]} 23. Bxd5 {[%emt 0:02:39]} cxd5 {[%emt 0:00:39]} 24. Rxg4 {[%emt 0:00:07]} Nf6 {[%emt 0:03:22]} 25. Rg2 {[%emt 0:01:17]} Ne4 {[%emt 0:05:49]} 26. Nxe4 {[%emt 0:00:41]} Rxe4 {[%emt 0:00:23]} 27. Rhg1 {[%emt 0:01:13]} Ne6 {[%emt 0:06:13]} 28. Kb1 {[%emt 0:02:59]} Qf5 {[%emt 0:10:31]} 29. Ka2 {[%emt 0:01:08]} Rf8 {[%emt 0:00:39]} 30. Be3 {[%emt 0:02:29]} Rf7 {[%emt 0:01:08]} 31. Rg3 {[%emt 0:00:59]} Nf8 {[%emt 0:05:32]} 32. Qg2 {[%emt 0:02:04]} Ree7 {[%emt 0:00:52]} 33. Rc1 {[%emt 0:01:17]} Rc7 {[%emt 0:01:11]} 34. Qd2 {[%emt 0:02:25]} Ne6 {[%emt 0:02:49]} 35. Rgg1 {[%emt 0:01:16]} Nd8 {[%emt 0:01:28]} 36. Rgd1 {[%emt 0:01:26]} Ne6 {[%emt 0:00:38]} 37. Rg1 {[%emt 0:00:27]} Nd8 {[%emt 0:00:13]} 38. Rgd1 {[%emt 0:00:04]} Nc6 {[%emt 0:00:20]} 39. Rc5 {[%emt 0:01:18]} b6 {[%emt 0:00:34]} 40. Rc3 {[%emt 0:00:05]} Na5 {[%emt 0:00:44]} 41. b3 {[%emt 0:06:18]} Nb7 {[%emt 0:05:01]} 42. Rdc1 {[%emt 0:02:34]} Rxc3 {[%emt 0:00:31]} 43. Qxc3 {[%emt 0:01:01]} Re7 {[%emt 0:06:15]} 44. Kb2 {[%emt 0:04:11]} Qh3 {[%emt 0:03:13]} 45. Bd2 {[%emt 0:08:37]} Qxc3+ {[%emt 0:01:14]} 46. Rxc3 {[%emt 0:03:32]} Nd6 {[%emt 0:01:31]} 47. Re3 {[%emt 0:02:36]} Rxe3 {[%emt 0:01:36]} 48. Bxe3 {[%emt 0:00:04]} Kf7 {[%emt 0:01:58]} 49. Kc3 {[%emt 0:00:31]} Ke6 {[%emt 0:00:47]} 50. Kb4 {[%emt 0:01:54]} Kf5 {[%emt 0:02:55]} 51. Bg1 {[%emt 0:00:24]} Kg4 {[%emt 0:02:07]} 52. f5 {[%emt 0:01:32]} Nxf5 {[%emt 0:05:16]} 53. Kb5 {[%emt 0:00:11]} Kg3 {[%emt 0:00:11]} 54. Ka6 {[%emt 0:00:17]} Kg2 {[%emt 0:00:07]} 55. Kxa7 {[%emt 0:00:09]} Kxg1 {[%emt 0:00:06]} 56. Kxb6 {[%emt 0:00:06]} g5 {[%emt 0:05:06]} 57. hxg5 {[%emt 0:00:57]} h5 {[%emt 0:00:30]} 58. a4 {[%emt 0:00:27]} h4 {[%emt 0:00:09]} 59. a5 {[%emt 0:00:10]} h3 {[%emt 0:00:57] normal} 1-0

[Event "DVM U20w 2019"]
[Site "Braunschweig"]
[Date "2019.12.27"]
[Round "2"]
[White "Miljkovic, Jovana"]
[Black "Köhler, Inken"]
[Result "1/2-1/2"]
[ECO "B06"]
[WhiteElo "2021"]
[BlackElo "1998"]
[Annotator "NA"]
[PlyCount "92"]
[EventDate "2019.12.27"]
[EventType "team-tourn"]
[EventRounds "7"]
[EventCountry "GER"]
[SourceTitle "playchess.com"]
[Source "ChessBase"]
[SourceQuality "1"]
[WhiteTeam "SV Lingen"]
[BlackTeam "TuRa Harksheide Norderstedt"]
[TimeControl "40/5400+30:1800+30"]

1. Nf3 {[%emt 0:00:00]} g6 {[%emt 0:00:00]} 2. e4 {[%emt 0:00:00]} Bg7 {[%emt 0:00:00]} 3. d4 {[%emt 0:00:00]} d6 {[%emt 0:00:00]} 4. c3 {[%emt 0:00:45]} Nf6 {[%emt 0:00:32]} 5. Bd3 {[%emt 0:00:07]} O-O {[%emt 0:00:41]} 6. O-O {[%emt 0:00:10]} Nbd7 {[%emt 0:00:59]} 7. h3 {[%emt 0:04:02]} e5 {[%emt 0:01:20]} 8. Re1 {[%emt 0:02:42]} Qe7 {[%emt 0:02:21]} 9. a4 {[%emt 0:06:08]} a5 {[%emt 0:01:16]} 10. Na3 {[%emt 0:00:22]} Nb6 {[%emt 0:03:39]} 11. Qc2 {[%emt 0:04:26]} c6 {[%emt 0:02:33]} 12. dxe5 {[%emt 0:04:59]} dxe5 {[%emt 0:00:14]} 13. Be3 {[%emt 0:02:09]} Nfd7 {[%emt 0:01:49]} 14. Nc4 {[%emt 0:06:55]} Nxc4 {[%emt 0:04:16]} 15. Bxc4 {[%emt 0:02:00]} Nc5 {[%emt 0:01:42]} 16. Red1 {[%emt 0:02:12]} Ne6 {[%emt 0:04:18]} 17. Rd2 {[%emt 0:01:47]} Rd8 {[%emt 0:02:11]} 18. Rad1 {[%emt 0:01:58]} Rxd2 {[%emt 0:01:34]} 19. Qxd2 {[%emt 0:00:23]} b5 {[%emt 0:05:34]} 20. axb5 {[%emt 0:08:12]} cxb5 {[%emt 0:00:22]} 21. Bxb5 {[%emt 0:01:00]} Bb7 {[%emt 0:00:52]} 22. Qd7 {[%emt 0:04:38]} Qxd7 {[%emt 0:01:23]} 23. Rxd7 {[%emt 0:00:01]} Bxe4 {[%emt 0:00:47]} 24. Ng5 {[%emt 0:06:42]} Bf5 {[%emt 0:11:58]} 25. Nxe6 {[%emt 0:03:07]} Bxe6 {[%emt 0:00:19]} 26. Ra7 {[%emt 0:00:50]} Rxa7 {[%emt 0:00:44]} 27. Bxa7 {[%emt 0:00:01]} Bb3 {[%emt 0:00:24]} 28. Bb6 {[%emt 0:00:09]} a4 {[%emt 0:00:06]} 29. Kf1 {[%emt 0:01:54]} e4 {[%emt 0:01:24]} 30. Bd4 {[%emt 0:04:37]} Bxd4 {[%emt 0:02:03]} 31. cxd4 {[%emt 0:00:02]} f5 {[%emt 0:00:16]} 32. d5 {[%emt 0:03:42]} Bxd5 {[%emt 0:03:39]} 33. Bxa4 {[%emt 0:00:02]} Kf7 {[%emt 0:01:22]} 34. g3 {[%emt 0:02:29]} Ke6 {[%emt 0:01:04]} 35. Ke2 {[%emt 0:00:07]} Ke5 {[%emt 0:00:18]} 36. h4 {[%emt 0:06:16]} h6 {[%emt 0:04:10]} 37. Be8 {[%emt 0:04:44]} g5 {[%emt 0:00:39]} 38. hxg5 {[%emt 0:00:05]} hxg5 {[%emt 0:00:04]} 39. Kd2 {[%emt 0:01:26]} f4 {[%emt 0:08:07]} 40. gxf4+ {[%emt 0:02:14]} Kxf4 {[%emt 0:00:39]} 41. Bb5 {[%emt 0:31:47]} Kf3 {[%emt 0:32:05]} 42. Ke1 {[%emt 0:00:26]} Bb3 {[%emt 0:01:34]} 43. Be2+ {[%emt 0:03:13]} Kg2 {[%emt 0:01:24]} 44. Bg4 {[%emt 0:01:56]} Bc4 {[%emt 0:03:26]} 45. b4 {[%emt 0:03:32]} Ba6 {[%emt 0:02:40]} 46. Bd7 {[%emt 0:04:07] normal} Kf3 {[%emt 0:05:53] normal} 1/2-1/2

[Event "DVM U20w 2019"]
[Site "Braunschweig"]
[Date "2019.12.27"]
[Round "2"]
[White "Peglau, Mirjam"]
[Black "Möller, Lisa-Marie"]
[Result "1/2-1/2"]
[ECO "A04"]
[WhiteElo "1916"]
[BlackElo "1934"]
[Annotator "NA"]
[PlyCount "88"]
[EventDate "2019.12.27"]
[EventType "team-tourn"]
[EventRounds "7"]
[EventCountry "GER"]
[SourceTitle "playchess.com"]
[Source "ChessBase"]
[SourceQuality "1"]
[WhiteTeam "Schachzentrum Seeblick"]
[BlackTeam "Düsseldorfer SK"]
[TimeControl "40/5400+30:1800+30"]

1. Nf3 {[%emt 0:00:00]} c5 {[%emt 0:00:00]} 2. c4 {[%emt 0:00:00]} g6 {[%emt 0:00:11]} 3. d4 {[%emt 0:00:26]} cxd4 {[%emt 0:01:07]} 4. Nxd4 {[%emt 0:00:02]} Bg7 {[%emt 0:00:38]} 5. Nc3 {[%emt 0:00:31]} Nf6 {[%emt 0:01:49]} 6. e4 {[%emt 0:00:11]} d6 {[%emt 0:00:39]} 7. Be2 {[%emt 0:00:24]} O-O {[%emt 0:00:16]} 8. Be3 {[%emt 0:00:21]} Nc6 {[%emt 0:01:22]} 9. O-O {[%emt 0:00:37]} Nxd4 {[%emt 0:01:09]} 10. Bxd4 {[%emt 0:00:15]} Be6 {[%emt 0:03:11]} 11. b3 {[%emt 0:02:30]} Nd7 {[%emt 0:08:22]} 12. f4 {[%emt 0:04:13]} Bxd4+ {[%emt 0:05:33]} 13. Qxd4 {[%emt 0:00:15]} Qb6 {[%emt 0:01:51]} 14. Rad1 {[%emt 0:02:16]} Qxd4+ {[%emt 0:06:12]} 15. Rxd4 {[%emt 0:00:02]} Nb6 {[%emt 0:02:31]} 16. f5 {[%emt 0:02:18]} Bd7 {[%emt 0:03:05]} 17. f6 {[%emt 0:01:01]} Rfe8 {[%emt 0:02:43]} 18. fxe7 {[%emt 0:00:45]} Rxe7 {[%emt 0:00:47]} 19. Rxd6 {[%emt 0:00:17]} Bc6 {[%emt 0:01:03]} 20. Bf3 {[%emt 0:00:50]} Nd7 {[%emt 0:02:22]} 21. Nd5 {[%emt 0:04:13]} Bxd5 {[%emt 0:01:09]} 22. exd5 {[%emt 0:00:24]} Rae8 {[%emt 0:05:12]} 23. h3 {[%emt 0:17:32]} Kg7 {[%emt 0:05:11]} 24. Bd1 {[%emt 0:04:52]} Nc5 {[%emt 0:08:23]} 25. Bc2 {[%emt 0:07:40]} f5 {[%emt 0:14:50]} 26. b4 {[%emt 0:02:42]} Ne4 {[%emt 0:03:39]} 27. Bxe4 {[%emt 0:00:13]} Rxe4 {[%emt 0:00:31]} 28. Rc1 {[%emt 0:02:45]} R8e7 {[%emt 0:02:55]} 29. Rc3 {[%emt 0:02:55]} Rc7 {[%emt 0:03:12]} 30. a3 {[%emt 0:00:46]} Rexc4 {[%emt 0:02:28]} 31. Rxc4 {[%emt 0:00:09]} Rxc4 {[%emt 0:00:04]} 32. Rd7+ {[%emt 0:00:04]} Kf6 {[%emt 0:00:31]} 33. Rxb7 {[%emt 0:00:25]} a5 {[%emt 0:01:22]} 34. d6 {[%emt 0:04:47]} Ke6 {[%emt 0:01:21]} 35. d7 {[%emt 0:00:45]} Ke7 {[%emt 0:00:21]} 36. bxa5 {[%emt 0:01:16]} Ra4 {[%emt 0:00:38]} 37. Ra7 {[%emt 0:00:04]} Rxa3 {[%emt 0:00:31]} 38. a6 {[%emt 0:00:17]} Ra2 {[%emt 0:00:33]} 39. Kf1 {[%emt 0:00:30]} g5 {[%emt 0:00:52]} 40. d8=Q+ {[%emt 0:02:58]} Kxd8 {[%emt 0:00:06]} 41. Rxh7 {[%emt 0:30:08]} Rxa6 {[%emt 0:30:12]} 42. Rg7 {[%emt 0:00:07]} g4 {[%emt 0:04:09]} 43. hxg4 {[%emt 0:01:05]} fxg4 {[%emt 0:02:28]} 44. Rxg4 {[%emt 0:00:03]} Ke7 {[%emt 0:00:20] normal} 1/2-1/2

[Event "DVM U20w 2019"]
[Site "Braunschweig"]
[Date "2019.12.27"]
[Round "2"]
[White "Schumann, Rabea"]
[Black "Rempe, Janne"]
[Result "1/2-1/2"]
[ECO "A10"]
[WhiteElo "1873"]
[BlackElo "1559"]
[Annotator "NA"]
[PlyCount "108"]
[EventDate "2019.12.27"]
[EventType "team-tourn"]
[EventRounds "7"]
[EventCountry "GER"]
[SourceTitle "playchess.com"]
[Source "ChessBase"]
[SourceQuality "1"]
[WhiteTeam "SG Güstrow/Teterow"]
[BlackTeam "SK Doppelbauer Kiel"]
[TimeControl "40/5400+30:1800+30"]

1. c4 {[%emt 0:00:00]} d6 {[%emt 0:00:00]} 2. g3 {[%emt 0:00:00]} Nf6 {[%emt 0:00:11]} 3. Bg2 {[%emt 0:00:11]} Nbd7 {[%emt 0:00:39]} 4. Nc3 {[%emt 0:00:47]} e5 {[%emt 0:00:19]} 5. e4 {[%emt 0:01:13]} Be7 {[%emt 0:01:09]} 6. Nge2 {[%emt 0:00:45]} O-O {[%emt 0:01:07]} 7. O-O {[%emt 0:00:39]} c6 {[%emt 0:00:49]} 8. d3 {[%emt 0:01:36]} Re8 {[%emt 0:02:19]} 9. h3 {[%emt 0:02:29]} Nf8 {[%emt 0:00:39]} 10. f4 {[%emt 0:07:59]} exf4 {[%emt 0:03:22]} 11. Nxf4 {[%emt 0:04:42]} Bd7 {[%emt 0:02:30]} 12. Be3 {[%emt 0:02:18]} Qc8 {[%emt 0:03:15]} 13. Kh2 {[%emt 0:02:17]} Ng6 {[%emt 0:05:30]} 14. Qd2 {[%emt 0:08:40]} Ne5 {[%emt 0:03:30]} 15. b3 {[%emt 0:03:24]} h5 {[%emt 0:04:29]} 16. d4 {[%emt 0:02:51]} Ng6 {[%emt 0:02:05]} 17. Nxg6 {[%emt 0:03:20]} fxg6 {[%emt 0:00:11]} 18. Qd3 {[%emt 0:05:37]} Rf8 {[%emt 0:03:55]} 19. e5 {[%emt 0:05:26]} Bf5 {[%emt 0:01:12]} 20. Rxf5 {[%emt 0:00:50]} gxf5 {[%emt 0:02:22]} 21. exf6 {[%emt 0:00:12]} Bxf6 {[%emt 0:00:41]} 22. Rf1 {[%emt 0:02:37]} h4 {[%emt 0:02:32]} 23. gxh4 {[%emt 0:05:51]} Bxh4 {[%emt 0:01:00]} 24. Bf4 {[%emt 0:07:06]} Qd7 {[%emt 0:03:26]} 25. c5 {[%emt 0:03:34]} dxc5 {[%emt 0:01:56]} 26. Qc4+ {[%emt 0:00:16]} Qf7 {[%emt 0:04:29]} 27. Qxf7+ {[%emt 0:02:22]} Rxf7 {[%emt 0:00:20]} 28. dxc5 {[%emt 0:01:59]} Rd8 {[%emt 0:02:24]} 29. Bd6 {[%emt 0:02:40]} Re8 {[%emt 0:02:08]} 30. b4 {[%emt 0:07:22]} a6 {[%emt 0:01:58]} 31. a4 {[%emt 0:02:28]} Re3 {[%emt 0:02:03]} 32. Rf3 {[%emt 0:01:55]} f4 {[%emt 0:00:55]} 33. Rxe3 {[%emt 0:01:47]} fxe3 {[%emt 0:00:10]} 34. Bg3 {[%emt 0:05:23]} Bxg3+ {[%emt 0:00:21]} 35. Kxg3 {[%emt 0:00:08]} Rf2 {[%emt 0:00:49]} 36. Bf3 {[%emt 0:02:58]} Rc2 {[%emt 0:01:02]} 37. Ne2 {[%emt 0:00:47]} Rc4 {[%emt 0:01:23]} 38. b5 {[%emt 0:01:23]} Rxc5 {[%emt 0:01:49]} 39. bxc6 {[%emt 0:00:40]} bxc6 {[%emt 0:00:56]} 40. Kf4 {[%emt 0:02:05]} Rc4+ {[%emt 0:00:49]} 41. Kxe3 {[%emt 0:30:40]} Rxa4 {[%emt 0:31:34]} 42. Bxc6 {[%emt 0:00:21]} Ra3+ {[%emt 0:00:07]} 43. Kd4 {[%emt 0:01:11]} Rxh3 {[%emt 0:00:32]} 44. Kc5 {[%emt 0:00:00]} g5 {[%emt 0:00:00]} 45. Bb7 {[%emt 0:00:00]} a5 {[%emt 0:00:00]} 46. Nd4 {[%emt 0:00:00]} a4 {[%emt 0:00:00]} 47. Kb4 {[%emt 0:00:00]} Rh4 {[%emt 0:00:00]} 48. Kc3 {[%emt 0:00:00]} g4 {[%emt 0:00:00]} 49. Bc6 {[%emt 0:00:00]} Rh3+ {[%emt 0:00:00]} 50. Kb4 {[%emt 0:00:00]} g3 {[%emt 0:00:00]} 51. Nf5 {[%emt 0:00:00]} a3 {[%emt 0:00:00]} 52. Ne3 {[%emt 0:00:00]} Kf8 {[%emt 0:00:00]} 53. Kxa3 {[%emt 0:00:00]} g2 {[%emt 0:00:00]} 54. Bxg2 {[%emt 0:00:00]} Rxe3+ {[%emt 0:00:00] normal} 1/2-1/2

[Event "DVM U20w 2019"]
[Site "Braunschweig"]
[Date "2019.12.27"]
[Round "2"]
[White "Hartmann, Cora"]
[Black "Bashylina, Luisa"]
[Result "1/2-1/2"]
[ECO "B28"]
[WhiteElo "1842"]
[BlackElo "1935"]
[Annotator "NA"]
[PlyCount "66"]
[EventDate "2019.12.27"]
[EventType "team-tourn"]
[EventRounds "7"]
[EventCountry "GER"]
[SourceTitle "playchess.com"]
[Source "ChessBase"]
[SourceQuality "1"]
[WhiteTeam "SC Borussia Lichtenberg"]
[BlackTeam "SG Solingen"]
[TimeControl "40/5400+30:1800+30"]

1. e4 c5 2. Nf3 a6 3. d3 e6 4. g3 g6 5. Bg2 Bg7 6. O-O d6 7. Nbd2 Ne7 8. Ne1 Nbc6 9. f4 O-O 10. Nc4 f5 11. Nf3 b5 12. Ncd2 Rb8 13. Re1 e5 14. Nf1 Nd4 15. c3 Nxf3+ 16. Bxf3 Qb6 17. Be3 Be6 18. Qc2 b4 19. Reb1 Bxa2 20. Re1 Nc6 21. Qa4 Be6 22. exf5 Bd7 23. fxg6 exf4 24. Bxf4 Ne5 25. Bd5+ Kh8 26. Qxa6 Qxa6 27. Rxa6 Nxd3 28. Re7 bxc3 29. bxc3 Bh3 30. Raa7 Nxf4 31. gxf4 Rxf4 32. Bg2 Bxg2 33. Rxg7 Be4 {normal} 1/2-1/2